Workbook

Sheet Dashboard
A3: Revenue
A4: Cost Of Services
A5: Gross Profit
A6: Admin Expenses
A7: Selling & Marketing
A8: Depreciation
A9: Impairment loss
A10: Operating expenses
A11: Operating income
A12: Finance Cost
A13: Net income
A16: Monthly
A17: Quarterly
A18: Yearly | D18: Microsoft | E18: Apple | F18: Google | G18: Amazon

Sheet Microsoft
H1: 2013 | I1: 2013 | J1: 2013 | K1: 2013 | L1: 2014 | M1: 2014 | N1: 2014 | O1: 2014 | P1: 2013 | Q1: 2013 | R1: 2013 | S1: 2013 | T1: 2013 | U1: 2013 | V1: 2013 | W1: 2013 | X1: 2013 | Y1: 2013 | Z1: 2013 | AA1: 2013 | AB1: 2014 | AC1: 2014 | AD1: 2014 | AE1: 2014 | AF1: 2014 | AG1: 2014 | AH1: 2014 | AI1: 2014 | AJ1: 2014 | AK1: 2014 | AL1: 2014 | AM1: 2014
H2: Q1 | I2: Q2 | J2: Q3 | K2: Q4 | L2: Q1 | M2: Q2 | N2: Q3 | O2: Q4 | P2: Jan | Q2: Feb | R2: Mar | S2: Apr | T2: May | U2: Jun | V2: Jul | W2: Aug | X2: Sep | Y2: Oct | Z2: Nov | AA2: Dec | AB2: Jan | AC2: Feb | AD2: Mar | AE2: Apr | AF2: May | AG2: Jun | AH2: Jul | AI2: Aug | AJ2: Sep | AK2: Oct | AL2: Nov | AM2: Dec
B3: 2009 | C3: 2010 | D3: 2011 | E3: 2012 | F3: 2013 | G3: 2014 | H3: =H2&CHAR(10)&H1 -> Q1 2013 | I3: =I2&CHAR(10)&I1 -> Q2 2013 | J3: Q3 2013 | K3: Q4 2013 | L3: Q1 2014 | M3: Q2 2014 | N3: Q3 2014 | O3: Q4 2014 | P3: Jan 2013 | Q3: Feb 2013 | R3: Mar 2013 | S3: Apr 2013 | T3: May 2013 | U3: Jun 2013 | V3: Jul 2013 | W3: Aug 2013 | X3: Sep 2013 | Y3: Oct 2013 | Z3: Nov 2013 | AA3: Dec 2013 | AB3: Jan 2014 | AC3: Feb 2014 | AD3: Mar 2014 | AE3: Apr 2014 | AF3: May 2014 | AG3: Jun 2014 | AH3: Jul 2014 | AI3: Aug 2014 | AJ3: Sep 2014 | AK3: Oct 2014 | AL3: Nov 2014 | AM3: Dec 2014
A4: Revenue | B4: 602 | C4: =B4*RANDBETWEEN(9,10)/7.5 -> 722.4 | D4: =C4*RANDBETWEEN(9,10)/7.5 -> 963.2 | E4: 1284.266667 | F4: 1541.12 | G4: 2054.826667 | H4: =AVERAGE(B4:C4)/4 -> 165.55 | I4: =AVERAGE(C4:D4)/4 -> 210.7 | J4: 280.9333333 | K4: 353.1733333 | L4: 449.4933333 | M4: =AVERAGE(B4:E4)/4 -> 223.2416667 | N4: =AVERAGE(E4:G4)/4 -> 406.6844444 | O4: =AVERAGE(B4:G4)/4 -> 298.6588889 | P4: =AVERAGE(B4:C4)/12 -> 55.18333333 | Q4: =AVERAGE(C4:D4)/12 -> 70.23333333 | R4: 93.64444444 | S4: 117.7244444 | T4: 149.8311111 | U4: =AVERAGE(H4:I4)/4 -> 47.03125 | V4: =AVERAGE(I4:J4)/4 -> 61.45416667 | W4: =AVERAGE(J4:K4)/4 -> 79.26333333 | X4: 100.3333333 | Y4: =AVERAGE(L4:M4)/4 -> 84.091875 | Z4: =AVERAGE(M4:N4)/4 -> 78.74076389 | AA4: =AVERAGE(N4:O4)/4 -> 88.16791667 | AB4: =P4*RANDBETWEEN(9,10)/10 -> 49.665 | AC4: =Q4*RANDBETWEEN(9,10)/10 -> 70.23333333 | AD4: 93.64444444 | AE4: 105.952 | AF4: 134.848 | AG4: 42.328125 | AH4: 55.30875 | AI4: 71.337 | AJ4: 100.3333333 | AK4: 84.091875 | AL4: 70.8666875 | AM4: 88.16791667
A5: Cost Of Services | B5: =B4*30% -> 180.6 | C5: =C4*30% -> 216.72 | D5: 288.96 | E5: 385.28 | F5: 462.336 | G5: 616.448 | H5: 49.665 | I5: 63.21 | J5: 84.28 | K5: 105.952 | L5: 134.848 | M5: 66.9725 | N5: 122.0053333 | O5: 89.59766667 | P5: 16.555 | Q5: 21.07 | R5: 28.09333333 | S5: 35.31733333 | T5: 44.94933333 | U5: 14.109375 | V5: 18.43625 | W5: 23.779 | X5: 30.1 | Y5: 25.2275625 | Z5: 23.62222917 | AA5: 26.450375 | AB5: 14.8995 | AC5: 21.07 | AD5: 28.09333333 | AE5: 31.7856 | AF5: 40.4544 | AG5: 12.6984375 | AH5: 16.592625 | AI5: 21.4011 | AJ5: 30.1 | AK5: 25.2275625 | AL5: 21.26000625 | AM5: 26.450375
A6: Gross Profit | B6: =B4-B5 -> 421.4 | C6: =C4-C5 -> 505.68 | D6: 674.24 | E6: 898.9866667 | F6: 1078.784 | G6: 1438.378667 | H6: 115.885 | I6: 147.49 | J6: 196.6533333 | K6: 247.2213333 | L6: 314.6453333 | M6: 156.2691667 | N6: 284.6791111 | O6: 209.0612222 | P6: 38.62833333 | Q6: 49.16333333 | R6: 65.55111111 | S6: 82.40711111 | T6: 104.8817778 | U6: 32.921875 | V6: 43.01791667 | W6: 55.48433333 | X6: 70.23333333 | Y6: 58.8643125 | Z6: 55.11853472 | AA6: 61.71754167 | AB6: 34.7655 | AC6: 49.16333333 | AD6: 65.55111111 | AE6: 74.1664 | AF6: 94.3936 | AG6: 29.6296875 | AH6: 38.716125 | AI6: 49.9359 | AJ6: 70.23333333 | AK6: 58.8643125 | AL6: 49.60668125 | AM6: 61.71754167
A7: Admin Expenses | B7: =B$4*11% -> 66.22 | C7: =C$4*11% -> 79.464 | D7: 105.952 | E7: 141.2693333 | F7: 169.5232 | G7: 226.0309333 | H7: 18.2105 | I7: 23.177 | J7: 30.90266667 | K7: 38.84906667 | L7: 49.44426667 | M7: 24.55658333 | N7: 44.73528889 | O7: 32.85247778 | P7: 6.070166667 | Q7: 7.725666667 | R7: 10.30088889 | S7: 12.94968889 | T7: 16.48142222 | U7: 5.1734375 | V7: 6.759958333 | W7: 8.718966667 | X7: 11.03666667 | Y7: 9.25010625 | Z7: 8.661484028 | AA7: 9.698470833 | AB7: 5.46315 | AC7: 7.725666667 | AD7: 10.30088889 | AE7: 11.65472 | AF7: 14.83328 | AG7: 4.65609375 | AH7: 6.0839625 | AI7: 7.84707 | AJ7: 11.03666667 | AK7: 9.25010625 | AL7: 7.795335625 | AM7: 9.698470833
A8: Selling & Marketing | B8: =B$4*7% -> 42.14 | C8: =C$4*5% -> 36.12 | D8: 48.16 | E8: 64.21333333 | F8: 77.056 | G8: 102.7413333 | H8: =H$4*7% -> 11.5885 | I8: 10.535 | J8: 14.04666667 | K8: 17.65866667 | L8: 22.47466667 | M8: 11.16208333 | N8: =N$4*7% -> 28.46791111 | O8: 14.93294444 | P8: 2.759166667 | Q8: 3.511666667 | R8: 4.682222222 | S8: =S$4*5% -> 5.886222222 | T8: 7.491555556 | U8: 2.3515625 | V8: 3.072708333 | W8: 3.963166667 | X8: 5.016666667 | Y8: 4.20459375 | Z8: 3.937038194 | AA8: 4.408395833 | AB8: 2.48325 | AC8: 3.511666667 | AD8: 4.682222222 | AE8: 5.2976 | AF8: 6.7424 | AG8: 2.11640625 | AH8: 2.7654375 | AI8: 3.56685 | AJ8: 5.016666667 | AK8: 4.20459375 | AL8: 3.543334375 | AM8: 4.408395833
A9: Depreciation | B9: =B$4*3% -> 18.06 | C9: 36.12 | D9: 48.16 | E9: 64.21333333 | F9: 77.056 | G9: 102.7413333 | H9: =H$4*3% -> 4.9665 | I9: 10.535 | J9: 14.04666667 | K9: 17.65866667 | L9: 22.47466667 | M9: 11.16208333 | N9: =N$4*3% -> 12.20053333 | O9: 14.93294444 | P9: 2.759166667 | Q9: 3.511666667 | R9: 4.682222222 | S9: 5.886222222 | T9: 7.491555556 | U9: 2.3515625 | V9: 3.072708333 | W9: 3.963166667 | X9: 5.016666667 | Y9: 4.20459375 | Z9: 3.937038194 | AA9: 4.408395833 | AB9: 2.48325 | AC9: 3.511666667 | AD9: 4.682222222 | AE9: 5.2976 | AF9: 6.7424 | AG9: 2.11640625 | AH9: 2.7654375 | AI9: 3.56685 | AJ9: 5.016666667 | AK9: 4.20459375 | AL9: 3.543334375 | AM9: 4.408395833
A10: Impairment loss | B10: =B$4*1% -> 6.02 | C10: 36.12 | D10: 48.16 | E10: 64.21333333 | F10: 77.056 | G10: 102.7413333 | H10: =H$4*1% -> 1.6555 | I10: 10.535 | J10: 14.04666667 | K10: 17.65866667 | L10: 22.47466667 | M10: 11.16208333 | N10: =N$4*1% -> 4.066844444 | O10: 14.93294444 | P10: 2.759166667 | Q10: 3.511666667 | R10: 4.682222222 | S10: 5.886222222 | T10: 7.491555556 | U10: 2.3515625 | V10: 3.072708333 | W10: 3.963166667 | X10: 5.016666667 | Y10: 4.20459375 | Z10: 3.937038194 | AA10: 4.408395833 | AB10: 2.48325 | AC10: 3.511666667 | AD10: 4.682222222 | AE10: 5.2976 | AF10: 6.7424 | AG10: 2.11640625 | AH10: 2.7654375 | AI10: 3.56685 | AJ10: 5.016666667 | AK10: 4.20459375 | AL10: 3.543334375 | AM10: 4.408395833
A11: Operating expenses | B11: =SUM(B7:B10) -> 132.44 | C11: 187.824 | D11: 250.432 | E11: 333.9093333 | F11: 400.6912 | G11: 534.2549333 | H11: 36.421 | I11: 54.782 | J11: 73.04266667 | K11: 91.82506667 | L11: 116.8682667 | M11: 58.04283333 | N11: 89.47057778 | O11: 77.65131111 | P11: 14.34766667 | Q11: 18.26066667 | R11: 24.34755556 | S11: 30.60835556 | T11: 38.95608889 | U11: 12.228125 | V11: 15.97808333 | W11: 20.60846667 | X11: 26.08666667 | Y11: 21.8638875 | Z11: 20.47259861 | AA11: 22.92365833 | AB11: 12.9129 | AC11: 18.26066667 | AD11: 24.34755556 | AE11: 27.54752 | AF11: 35.06048 | AG11: 11.0053125 | AH11: 14.380275 | AI11: 18.54762 | AJ11: 26.08666667 | AK11: 21.8638875 | AL11: 18.42533875 | AM11: 22.92365833
A12: Operating income | B12: =B6-B11 -> 288.96 | C12: =C6-C11 -> 317.856 | D12: 423.808 | E12: 565.0773333 | F12: 678.0928 | G12: 904.1237333 | H12: 79.464 | I12: 92.708 | J12: 123.6106667 | K12: 155.3962667 | L12: 197.7770667 | M12: 98.22633333 | N12: 195.2085333 | O12: 131.4099111 | P12: 24.28066667 | Q12: 30.90266667 | R12: 41.20355556 | S12: 51.79875556 | T12: 65.92568889 | U12: 20.69375 | V12: 27.03983333 | W12: 34.87586667 | X12: 44.14666667 | Y12: 37.000425 | Z12: 34.64593611 | AA12: 38.79388333 | AB12: 21.8526 | AC12: 30.90266667 | AD12: 41.20355556 | AE12: 46.61888 | AF12: 59.33312 | AG12: 18.624375 | AH12: 24.33585 | AI12: 31.38828 | AJ12: 44.14666667 | AK12: 37.000425 | AL12: 31.1813425 | AM12: 38.79388333
A13: Finance Cost | B13: =B4*12.5% -> 75.25 | C13: =C4*12.5% -> 90.3 | D13: 120.4 | E13: 160.5333333 | F13: 192.64 | G13: 256.8533333 | H13: 20.69375 | I13: 26.3375 | J13: 35.11666667 | K13: 44.14666667 | L13: 56.18666667 | M13: 27.90520833 | N13: 50.83555556 | O13: 37.33236111 | P13: 6.897916667 | Q13: 8.779166667 | R13: 11.70555556 | S13: 14.71555556 | T13: 18.72888889 | U13: 5.87890625 | V13: 7.681770833 | W13: 9.907916667 | X13: 12.54166667 | Y13: 10.51148437 | Z13: 9.842595486 | AA13: 11.02098958 | AB13: 6.208125 | AC13: 8.779166667 | AD13: 11.70555556 | AE13: 13.244 | AF13: 16.856 | AG13: 5.291015625 | AH13: 6.91359375 | AI13: 8.917125 | AJ13: 12.54166667 | AK13: 10.51148437 | AL13: 8.858335937 | AM13: 11.02098958
A14: Net income | B14: =B12-B13 -> 213.71 | C14: =C12-C13 -> 227.556 | D14: 303.408 | E14: 404.544 | F14: 485.4528 | G14: 647.2704 | H14: 58.77025 | I14: 66.3705 | J14: 88.494 | K14: 111.2496 | L14: 141.5904 | M14: 70.321125 | N14: 144.3729778 | O14: 94.07755 | P14: 17.38275 | Q14: 22.1235 | R14: 29.498 | S14: 37.0832 | T14: 47.1968 | U14: 14.81484375 | V14: 19.3580625 | W14: 24.96795 | X14: 31.605 | Y14: 26.48894062 | Z14: 24.80334063 | AA14: 27.77289375 | AB14: 15.644475 | AC14: 22.1235 | AD14: 29.498 | AE14: 33.37488 | AF14: 42.47712 | AG14: 13.33335938 | AH14: 17.42225625 | AI14: 22.471155 | AJ14: 31.605 | AK14: 26.48894062 | AL14: 22.32300656 | AM14: 27.77289375

Sheet Apple
H1: 2013 | I1: 2013 | J1: 2013 | K1: 2013 | L1: 2014 | M1: 2014 | N1: 2014 | O1: 2014 | P1: 2013 | Q1: 2013 | R1: 2013 | S1: 2013 | T1: 2013 | U1: 2013 | V1: 2013 | W1: 2013 | X1: 2013 | Y1: 2013 | Z1: 2013 | AA1: 2013 | AB1: 2014 | AC1: 2014 | AD1: 2014 | AE1: 2014 | AF1: 2014 | AG1: 2014 | AH1: 2014 | AI1: 2014 | AJ1: 2014 | AK1: 2014 | AL1: 2014 | AM1: 2014
H2: Q1 | I2: Q2 | J2: Q3 | K2: Q4 | L2: Q1 | M2: Q2 | N2: Q3 | O2: Q4 | P2: Jan | Q2: Feb | R2: Mar | S2: Apr | T2: May | U2: Jun | V2: Jul | W2: Aug | X2: Sep | Y2: Oct | Z2: Nov | AA2: Dec | AB2: Jan | AC2: Feb | AD2: Mar | AE2: Apr | AF2: May | AG2: Jun | AH2: Jul | AI2: Aug | AJ2: Sep | AK2: Oct | AL2: Nov | AM2: Dec
B3: 2009 | C3: 2010 | D3: 2011 | E3: 2012 | F3: 2013 | G3: 2014 | H3: =H2&CHAR(10)&H1 -> Q1 2013 | I3: =I2&CHAR(10)&I1 -> Q2 2013 | J3: Q3 2013 | K3: Q4 2013 | L3: Q1 2014 | M3: Q2 2014 | N3: Q3 2014 | O3: Q4 2014 | P3: Jan 2013 | Q3: Feb 2013 | R3: Mar 2013 | S3: Apr 2013 | T3: May 2013 | U3: Jun 2013 | V3: Jul 2013 | W3: Aug 2013 | X3: Sep 2013 | Y3: Oct 2013 | Z3: Nov 2013 | AA3: Dec 2013 | AB3: Jan 2014 | AC3: Feb 2014 | AD3: Mar 2014 | AE3: Apr 2014 | AF3: May 2014 | AG3: Jun 2014 | AH3: Jul 2014 | AI3: Aug 2014 | AJ3: Sep 2014 | AK3: Oct 2014 | AL3: Nov 2014 | AM3: Dec 2014
A4: Revenue | B4: 300 | C4: =B4*RANDBETWEEN(9,10)/8.5 -> 352.9411765 | D4: =C4*RANDBETWEEN(9,10)/8.5 -> 415.2249135 | E4: 439.6499084 | F4: 517.2351864 | G4: 608.511984 | H4: =AVERAGE(B4:C4)/4 -> 81.61764706 | I4: =AVERAGE(C4:D4)/4 -> 96.02076125 | J4: 106.8593527 | K4: 119.6106368 | L4: 140.7183963 | M4: =AVERAGE(B4:E4)/4 -> 94.2384999 | N4: =AVERAGE(E4:G4)/4 -> 130.4497566 | O4: =AVERAGE(B4:G4)/4 -> 109.7317987 | P4: =AVERAGE(B4:C4)/12 -> 27.20588235 | Q4: =AVERAGE(C4:D4)/12 -> 32.00692042 | R4: 35.61978425 | S4: 39.87021228 | T4: 46.9061321 | U4: =AVERAGE(H4:I4)/4 -> 22.20480104 | V4: =AVERAGE(I4:J4)/4 -> 25.36001425 | W4: =AVERAGE(J4:K4)/4 -> 28.3087487 | X4: 32.54112914 | Y4: =AVERAGE(L4:M4)/4 -> 29.36961202 | Z4: =AVERAGE(M4:N4)/4 -> 28.08603206 | AA4: =AVERAGE(N4:O4)/4 -> 30.02269441 | AB4: =P4*RANDBETWEEN(9,10)/10 -> 27.20588235 | AC4: =Q4*RANDBETWEEN(9,10)/10 -> 32.00692042 | AD4: 35.61978425 | AE4: 39.87021228 | AF4: 42.21551889 | AG4: 19.98432093 | AH4: 22.82401282 | AI4: 28.3087487 | AJ4: 32.54112914 | AK4: 26.43265082 | AL4: 25.27742885 | AM4: 30.02269441
A5: Cost Of Services | B5: =B4*30% -> 90 | C5: =C4*30% -> 105.8823529 | D5: 124.567474 | E5: 131.8949725 | F5: 155.1705559 | G5: 182.5535952 | H5: 24.48529412 | I5: 28.80622837 | J5: 32.05780582 | K5: 35.88319105 | L5: 42.21551889 | M5: 28.27154997 | N5: 39.13492697 | O5: 32.91953961 | P5: 8.161764706 | Q5: 9.602076125 | R5: 10.68593527 | S5: 11.96106368 | T5: 14.07183963 | U5: 6.661440311 | V5: 7.608004274 | W5: 8.492624609 | X5: 9.762338743 | Y5: 8.810883607 | Z5: 8.425809617 | AA5: 9.006808322 | AB5: 8.161764706 | AC5: 9.602076125 | AD5: 10.68593527 | AE5: 11.96106368 | AF5: 12.66465567 | AG5: 5.99529628 | AH5: 6.847203847 | AI5: 8.492624609 | AJ5: 9.762338743 | AK5: 7.929795246 | AL5: 7.583228655 | AM5: 9.006808322
A6: Gross Profit | B6: =B4-B5 -> 210 | C6: =C4-C5 -> 247.0588235 | D6: 290.6574394 | E6: 307.7549359 | F6: 362.0646305 | G6: 425.9583888 | H6: 57.13235294 | I6: 67.21453287 | J6: 74.80154692 | K6: 83.72744579 | L6: 98.5028774 | M6: 65.96694993 | N6: 91.31482959 | O6: 76.81225909 | P6: 19.04411765 | Q6: 22.40484429 | R6: 24.93384897 | S6: 27.9091486 | T6: 32.83429247 | U6: 15.54336073 | V6: 17.75200997 | W6: 19.81612409 | X6: 22.7787904 | Y6: 20.55872842 | Z6: 19.66022244 | AA6: 21.01588608 | AB6: 19.04411765 | AC6: 22.40484429 | AD6: 24.93384897 | AE6: 27.9091486 | AF6: 29.55086322 | AG6: 13.98902465 | AH6: 15.97680898 | AI6: 19.81612409 | AJ6: 22.7787904 | AK6: 18.50285557 | AL6: 17.6942002 | AM6: 21.01588608
A7: Admin Expenses | B7: =B$4*11% -> 33 | C7: =C$4*11% -> 38.82352941 | D7: 45.67474048 | E7: 48.36148992 | F7: 56.8958705 | G7: 66.93631823 | H7: 8.977941176 | I7: 10.56228374 | J7: 11.7545288 | K7: 13.15717005 | L7: 15.47902359 | M7: 10.36623499 | N7: 14.34947322 | O7: 12.07049786 | P7: 2.992647059 | Q7: 3.520761246 | R7: 3.918176267 | S7: 4.385723351 | T7: 5.159674531 | U7: 2.442528114 | V7: 2.789601567 | W7: 3.113962357 | X7: 3.579524206 | Y7: 3.230657323 | Z7: 3.089463526 | AA7: 3.302496385 | AB7: 2.992647059 | AC7: 3.520761246 | AD7: 3.918176267 | AE7: 4.385723351 | AF7: 4.643707078 | AG7: 2.198275303 | AH7: 2.510641411 | AI7: 3.113962357 | AJ7: 3.579524206 | AK7: 2.90759159 | AL7: 2.780517174 | AM7: 3.302496385
A8: Selling & Marketing | B8: =B$4*7% -> 21 | C8: =C$4*5% -> 17.64705882 | D8: 20.76124567 | E8: 21.98249542 | F8: 25.86175932 | G8: 30.4255992 | H8: =H$4*7% -> 5.713235294 | I8: 4.801038062 | J8: 5.342967637 | K8: 5.980531842 | L8: 7.035919814 | M8: 4.711924995 | N8: =N$4*7% -> 9.131482959 | O8: 5.486589935 | P8: 1.360294118 | Q8: 1.600346021 | R8: 1.780989212 | S8: =S$4*5% -> 1.993510614 | T8: 2.345306605 | U8: 1.110240052 | V8: 1.268000712 | W8: 1.415437435 | X8: 1.627056457 | Y8: 1.468480601 | Z8: 1.404301603 | AA8: 1.50113472 | AB8: 1.360294118 | AC8: 1.600346021 | AD8: 1.780989212 | AE8: 1.993510614 | AF8: 2.110775944 | AG8: 0.9992160467 | AH8: 1.141200641 | AI8: 1.415437435 | AJ8: 1.627056457 | AK8: 1.321632541 | AL8: 1.263871443 | AM8: 1.50113472
A9: Depreciation | B9: =B$4*3% -> 9 | C9: 17.64705882 | D9: 20.76124567 | E9: 21.98249542 | F9: 25.86175932 | G9: 30.4255992 | H9: =H$4*3% -> 2.448529412 | I9: 4.801038062 | J9: 5.342967637 | K9: 5.980531842 | L9: 7.035919814 | M9: 4.711924995 | N9: =N$4*3% -> 3.913492697 | O9: 5.486589935 | P9: 1.360294118 | Q9: 1.600346021 | R9: 1.780989212 | S9: 1.993510614 | T9: 2.345306605 | U9: 1.110240052 | V9: 1.268000712 | W9: 1.415437435 | X9: 1.627056457 | Y9: 1.468480601 | Z9: 1.404301603 | AA9: 1.50113472 | AB9: 1.360294118 | AC9: 1.600346021 | AD9: 1.780989212 | AE9: 1.993510614 | AF9: 2.110775944 | AG9: 0.9992160467 | AH9: 1.141200641 | AI9: 1.415437435 | AJ9: 1.627056457 | AK9: 1.321632541 | AL9: 1.263871443 | AM9: 1.50113472
A10: Impairment loss | B10: =B$4*1% -> 3 | C10: 17.64705882 | D10: 20.76124567 | E10: 21.98249542 | F10: 25.86175932 | G10: 30.4255992 | H10: =H$4*1% -> 0.8161764706 | I10: 4.801038062 | J10: 5.342967637 | K10: 5.980531842 | L10: 7.035919814 | M10: 4.711924995 | N10: =N$4*1% -> 1.304497566 | O10: 5.486589935 | P10: 1.360294118 | Q10: 1.600346021 | R10: 1.780989212 | S10: 1.993510614 | T10: 2.345306605 | U10: 1.110240052 | V10: 1.268000712 | W10: 1.415437435 | X10: 1.627056457 | Y10: 1.468480601 | Z10: 1.404301603 | AA10: 1.50113472 | AB10: 1.360294118 | AC10: 1.600346021 | AD10: 1.780989212 | AE10: 1.993510614 | AF10: 2.110775944 | AG10: 0.9992160467 | AH10: 1.141200641 | AI10: 1.415437435 | AJ10: 1.627056457 | AK10: 1.321632541 | AL10: 1.263871443 | AM10: 1.50113472
A11: Operating expenses | B11: =SUM(B7:B10) -> 66 | C11: 91.76470588 | D11: 107.9584775 | E11: 114.3089762 | F11: 134.4811485 | G11: 158.2131158 | H11: 17.95588235 | I11: 24.96539792 | J11: 27.78343171 | K11: 31.09876558 | L11: 36.58678304 | M11: 24.50200997 | N11: 28.69894644 | O11: 28.53026766 | P11: 7.073529412 | Q11: 8.321799308 | R11: 9.261143904 | S11: 10.36625519 | T11: 12.19559435 | U11: 5.77324827 | V11: 6.593603704 | W11: 7.360274661 | X11: 8.460693577 | Y11: 7.636099126 | Z11: 7.302368335 | AA11: 7.805900546 | AB11: 7.073529412 | AC11: 8.321799308 | AD11: 9.261143904 | AE11: 10.36625519 | AF11: 10.97603491 | AG11: 5.195923443 | AH11: 5.934243334 | AI11: 7.360274661 | AJ11: 8.460693577 | AK11: 6.872489213 | AL11: 6.572131501 | AM11: 7.805900546
A12: Operating income | B12: =B6-B11 -> 144 | C12: =C6-C11 -> 155.2941176 | D12: 182.6989619 | E12: 193.4459597 | F12: 227.583482 | G12: 267.7452729 | H12: 39.17647059 | I12: 42.24913495 | J12: 47.0181152 | K12: 52.62868021 | L12: 61.91609437 | M12: 41.46493996 | N12: 62.61588315 | O12: 48.28199143 | P12: 11.97058824 | Q12: 14.08304498 | R12: 15.67270507 | S12: 17.5428934 | T12: 20.63869812 | U12: 9.770112457 | V12: 11.15840627 | W12: 12.45584943 | X12: 14.31809682 | Y12: 12.92262929 | Z12: 12.35785411 | AA12: 13.20998554 | AB12: 11.97058824 | AC12: 14.08304498 | AD12: 15.67270507 | AE12: 17.5428934 | AF12: 18.57482831 | AG12: 8.793101211 | AH12: 10.04256564 | AI12: 12.45584943 | AJ12: 14.31809682 | AK12: 11.63036636 | AL12: 11.12206869 | AM12: 13.20998554
A13: Finance Cost | B13: =B4*12.5% -> 37.5 | C13: =C4*12.5% -> 44.11764706 | D13: 51.90311419 | E13: 54.95623855 | F13: 64.6543983 | G13: 76.06399799 | H13: 10.20220588 | I13: 12.00259516 | J13: 13.35741909 | K13: 14.95132961 | L13: 17.58979954 | M13: 11.77981249 | N13: 16.30621957 | O13: 13.71647484 | P13: 3.400735294 | Q13: 4.000865052 | R13: 4.452473031 | S13: 4.983776535 | T13: 5.863266512 | U13: 2.77560013 | V13: 3.170001781 | W13: 3.538593587 | X13: 4.067641143 | Y13: 3.671201503 | Z13: 3.510754007 | AA13: 3.752836801 | AB13: 3.400735294 | AC13: 4.000865052 | AD13: 4.452473031 | AE13: 4.983776535 | AF13: 5.276939861 | AG13: 2.498040117 | AH13: 2.853001603 | AI13: 3.538593587 | AJ13: 4.067641143 | AK13: 3.304081353 | AL13: 3.159678606 | AM13: 3.752836801
A14: Net income | B14: =B12-B13 -> 106.5 | C14: =C12-C13 -> 111.1764706 | D14: 130.7958478 | E14: 138.4897211 | F14: 162.9290837 | G14: 191.6812749 | H14: 28.97426471 | I14: 30.24653979 | J14: 33.66069611 | K14: 37.67735061 | L14: 44.32629483 | M14: 29.68512747 | N14: 46.30966358 | O14: 34.56551659 | P14: 8.569852941 | Q14: 10.08217993 | R14: 11.22023204 | S14: 12.55911687 | T14: 14.77543161 | U14: 6.994512327 | V14: 7.988404488 | W14: 8.91725584 | X14: 10.25045568 | Y14: 9.251427787 | Z14: 8.847100098 | AA14: 9.457148738 | AB14: 8.569852941 | AC14: 10.08217993 | AD14: 11.22023204 | AE14: 12.55911687 | AF14: 13.29788845 | AG14: 6.295061094 | AH14: 7.189564039 | AI14: 8.91725584 | AJ14: 10.25045568 | AK14: 8.326285009 | AL14: 7.962390088 | AM14: 9.457148738

Sheet Google
H1: 2013 | I1: 2013 | J1: 2013 | K1: 2013 | L1: 2014 | M1: 2014 | N1: 2014 | O1: 2014 | P1: 2013 | Q1: 2013 | R1: 2013 | S1: 2013 | T1: 2013 | U1: 2013 | V1: 2013 | W1: 2013 | X1: 2013 | Y1: 2013 | Z1: 2013 | AA1: 2013 | AB1: 2014 | AC1: 2014 | AD1: 2014 | AE1: 2014 | AF1: 2014 | AG1: 2014 | AH1: 2014 | AI1: 2014 | AJ1: 2014 | AK1: 2014 | AL1: 2014 | AM1: 2014
H2: Q1 | I2: Q2 | J2: Q3 | K2: Q4 | L2: Q1 | M2: Q2 | N2: Q3 | O2: Q4 | P2: Jan | Q2: Feb | R2: Mar | S2: Apr | T2: May | U2: Jun | V2: Jul | W2: Aug | X2: Sep | Y2: Oct | Z2: Nov | AA2: Dec | AB2: Jan | AC2: Feb | AD2: Mar | AE2: Apr | AF2: May | AG2: Jun | AH2: Jul | AI2: Aug | AJ2: Sep | AK2: Oct | AL2: Nov | AM2: Dec
B3: 2009 | C3: 2010 | D3: 2011 | E3: 2012 | F3: 2013 | G3: 2014 | H3: =H2&CHAR(10)&H1 -> Q1 2013 | I3: =I2&CHAR(10)&I1 -> Q2 2013 | J3: Q3 2013 | K3: Q4 2013 | L3: Q1 2014 | M3: Q2 2014 | N3: Q3 2014 | O3: Q4 2014 | P3: Jan 2013 | Q3: Feb 2013 | R3: Mar 2013 | S3: Apr 2013 | T3: May 2013 | U3: Jun 2013 | V3: Jul 2013 | W3: Aug 2013 | X3: Sep 2013 | Y3: Oct 2013 | Z3: Nov 2013 | AA3: Dec 2013 | AB3: Jan 2014 | AC3: Feb 2014 | AD3: Mar 2014 | AE3: Apr 2014 | AF3: May 2014 | AG3: Jun 2014 | AH3: Jul 2014 | AI3: Aug 2014 | AJ3: Sep 2014 | AK3: Oct 2014 | AL3: Nov 2014 | AM3: Dec 2014
A4: Revenue | B4: 1523 | C4: =B4*RANDBETWEEN(9,10)/7.5 -> 2030.666667 | D4: =C4*RANDBETWEEN(9,10)/7.5 -> 2707.555556 | E4: 3249.066667 | F4: 3898.88 | G4: 5198.506667 | H4: =AVERAGE(B4:C4)/4 -> 444.2083333 | I4: =AVERAGE(C4:D4)/4 -> 592.2777778 | J4: 744.5777778 | K4: 893.4933333 | L4: 1137.173333 | M4: =AVERAGE(B4:E4)/4 -> 594.3930556 | N4: =AVERAGE(E4:G4)/4 -> 1028.871111 | O4: =AVERAGE(B4:G4)/4 -> 775.3198148 | P4: =AVERAGE(B4:C4)/12 -> 148.0694444 | Q4: =AVERAGE(C4:D4)/12 -> 197.4259259 | R4: 248.1925926 | S4: 297.8311111 | T4: 379.0577778 | U4: =AVERAGE(H4:I4)/4 -> 129.5607639 | V4: =AVERAGE(I4:J4)/4 -> 167.1069444 | W4: =AVERAGE(J4:K4)/4 -> 204.7588889 | X4: 253.8333333 | Y4: =AVERAGE(L4:M4)/4 -> 216.4457986 | Z4: =AVERAGE(M4:N4)/4 -> 202.9080208 | AA4: =AVERAGE(N4:O4)/4 -> 225.5238657 | AB4: =P4*RANDBETWEEN(9,10)/10 -> 148.0694444 | AC4: =Q4*RANDBETWEEN(9,10)/10 -> 177.6833333 | AD4: 223.3733333 | AE4: 268.048 | AF4: 379.0577778 | AG4: 116.6046875 | AH4: 167.1069444 | AI4: 204.7588889 | AJ4: 228.45 | AK4: 194.8012187 | AL4: 202.9080208 | AM4: 225.5238657
A5: Cost Of Services | B5: =B4*30% -> 456.9 | C5: =C4*30% -> 609.2 | D5: 812.2666667 | E5: 974.72 | F5: 1169.664 | G5: 1559.552 | H5: 133.2625 | I5: 177.6833333 | J5: 223.3733333 | K5: 268.048 | L5: 341.152 | M5: 178.3179167 | N5: 308.6613333 | O5: 232.5959444 | P5: 44.42083333 | Q5: 59.22777778 | R5: 74.45777778 | S5: 89.34933333 | T5: 113.7173333 | U5: 38.86822917 | V5: 50.13208333 | W5: 61.42766667 | X5: 76.15 | Y5: 64.93373958 | Z5: 60.87240625 | AA5: 67.65715972 | AB5: 44.42083333 | AC5: 53.305 | AD5: 67.012 | AE5: 80.4144 | AF5: 113.7173333 | AG5: 34.98140625 | AH5: 50.13208333 | AI5: 61.42766667 | AJ5: 68.535 | AK5: 58.44036562 | AL5: 60.87240625 | AM5: 67.65715972
A6: Gross Profit | B6: =B4-B5 -> 1066.1 | C6: =C4-C5 -> 1421.466667 | D6: 1895.288889 | E6: 2274.346667 | F6: 2729.216 | G6: 3638.954667 | H6: 310.9458333 | I6: 414.5944444 | J6: 521.2044444 | K6: 625.4453333 | L6: 796.0213333 | M6: 416.0751389 | N6: 720.2097778 | O6: 542.7238704 | P6: 103.6486111 | Q6: 138.1981481 | R6: 173.7348148 | S6: 208.4817778 | T6: 265.3404444 | U6: 90.69253472 | V6: 116.9748611 | W6: 143.3312222 | X6: 177.6833333 | Y6: 151.512059 | Z6: 142.0356146 | AA6: 157.866706 | AB6: 103.6486111 | AC6: 124.3783333 | AD6: 156.3613333 | AE6: 187.6336 | AF6: 265.3404444 | AG6: 81.62328125 | AH6: 116.9748611 | AI6: 143.3312222 | AJ6: 159.915 | AK6: 136.3608531 | AL6: 142.0356146 | AM6: 157.866706
A7: Admin Expenses | B7: =B$4*11% -> 167.53 | C7: =C$4*11% -> 223.3733333 | D7: 297.8311111 | E7: 357.3973333 | F7: 428.8768 | G7: 571.8357333 | H7: 48.86291667 | I7: 65.15055556 | J7: 81.90355556 | K7: 98.28426667 | L7: 125.0890667 | M7: 65.38323611 | N7: 113.1758222 | O7: 85.28517963 | P7: 16.28763889 | Q7: 21.71685185 | R7: 27.30118519 | S7: 32.76142222 | T7: 41.69635556 | U7: 14.25168403 | V7: 18.38176389 | W7: 22.52347778 | X7: 27.92166667 | Y7: 23.80903785 | Z7: 22.31988229 | AA7: 24.80762523 | AB7: 16.28763889 | AC7: 19.54516667 | AD7: 24.57106667 | AE7: 29.48528 | AF7: 41.69635556 | AG7: 12.82651563 | AH7: 18.38176389 | AI7: 22.52347778 | AJ7: 25.1295 | AK7: 21.42813406 | AL7: 22.31988229 | AM7: 24.80762523
A8: Selling & Marketing | B8: =B$4*7% -> 106.61 | C8: =C$4*5% -> 101.5333333 | D8: 135.3777778 | E8: 162.4533333 | F8: 194.944 | G8: 259.9253333 | H8: =H$4*7% -> 31.09458333 | I8: 29.61388889 | J8: 37.22888889 | K8: 44.67466667 | L8: 56.85866667 | M8: 29.71965278 | N8: =N$4*7% -> 72.02097778 | O8: 38.76599074 | P8: 7.403472222 | Q8: 9.871296296 | R8: 12.40962963 | S8: =S$4*5% -> 14.89155556 | T8: 18.95288889 | U8: 6.478038194 | V8: 8.355347222 | W8: 10.23794444 | X8: 12.69166667 | Y8: 10.82228993 | Z8: 10.14540104 | AA8: 11.27619329 | AB8: 7.403472222 | AC8: 8.884166667 | AD8: 11.16866667 | AE8: 13.4024 | AF8: 18.95288889 | AG8: 5.830234375 | AH8: 8.355347222 | AI8: 10.23794444 | AJ8: 11.4225 | AK8: 9.740060937 | AL8: 10.14540104 | AM8: 11.27619329
A9: Depreciation | B9: =B$4*3% -> 45.69 | C9: 101.5333333 | D9: 135.3777778 | E9: 162.4533333 | F9: 194.944 | G9: 259.9253333 | H9: =H$4*3% -> 13.32625 | I9: 29.61388889 | J9: 37.22888889 | K9: 44.67466667 | L9: 56.85866667 | M9: 29.71965278 | N9: =N$4*3% -> 30.86613333 | O9: 38.76599074 | P9: 7.403472222 | Q9: 9.871296296 | R9: 12.40962963 | S9: 14.89155556 | T9: 18.95288889 | U9: 6.478038194 | V9: 8.355347222 | W9: 10.23794444 | X9: 12.69166667 | Y9: 10.82228993 | Z9: 10.14540104 | AA9: 11.27619329 | AB9: 7.403472222 | AC9: 8.884166667 | AD9: 11.16866667 | AE9: 13.4024 | AF9: 18.95288889 | AG9: 5.830234375 | AH9: 8.355347222 | AI9: 10.23794444 | AJ9: 11.4225 | AK9: 9.740060937 | AL9: 10.14540104 | AM9: 11.27619329
A10: Impairment loss | B10: =B$4*1% -> 15.23 | C10: 101.5333333 | D10: 135.3777778 | E10: 162.4533333 | F10: 194.944 | G10: 259.9253333 | H10: =H$4*1% -> 4.442083333 | I10: 29.61388889 | J10: 37.22888889 | K10: 44.67466667 | L10: 56.85866667 | M10: 29.71965278 | N10: =N$4*1% -> 10.28871111 | O10: 38.76599074 | P10: 7.403472222 | Q10: 9.871296296 | R10: 12.40962963 | S10: 14.89155556 | T10: 18.95288889 | U10: 6.478038194 | V10: 8.355347222 | W10: 10.23794444 | X10: 12.69166667 | Y10: 10.82228993 | Z10: 10.14540104 | AA10: 11.27619329 | AB10: 7.403472222 | AC10: 8.884166667 | AD10: 11.16866667 | AE10: 13.4024 | AF10: 18.95288889 | AG10: 5.830234375 | AH10: 8.355347222 | AI10: 10.23794444 | AJ10: 11.4225 | AK10: 9.740060937 | AL10: 10.14540104 | AM10: 11.27619329
A11: Operating expenses | B11: =SUM(B7:B10) -> 335.06 | C11: 527.9733333 | D11: 703.9644444 | E11: 844.7573333 | F11: 1013.7088 | G11: 1351.611733 | H11: 97.72583333 | I11: 153.9922222 | J11: 193.5902222 | K11: 232.3082667 | L11: 295.6650667 | M11: 154.5421944 | N11: 226.3516444 | O11: 201.5831519 | P11: 38.49805556 | Q11: 51.33074074 | R11: 64.53007407 | S11: 77.43608889 | T11: 98.55502222 | U11: 33.68579861 | V11: 43.44780556 | W11: 53.23731111 | X11: 65.99666667 | Y11: 56.27590764 | Z11: 52.75608542 | AA11: 58.63620509 | AB11: 38.49805556 | AC11: 46.19766667 | AD11: 58.07706667 | AE11: 69.69248 | AF11: 98.55502222 | AG11: 30.31721875 | AH11: 43.44780556 | AI11: 53.23731111 | AJ11: 59.397 | AK11: 50.64831687 | AL11: 52.75608542 | AM11: 58.63620509
A12: Operating income | B12: =B6-B11 -> 731.04 | C12: =C6-C11 -> 893.4933333 | D12: 1191.324444 | E12: 1429.589333 | F12: 1715.5072 | G12: 2287.342933 | H12: 213.22 | I12: 260.6022222 | J12: 327.6142222 | K12: 393.1370667 | L12: 500.3562667 | M12: 261.5329444 | N12: 493.8581333 | O12: 341.1407185 | P12: 65.15055556 | Q12: 86.86740741 | R12: 109.2047407 | S12: 131.0456889 | T12: 166.7854222 | U12: 57.00673611 | V12: 73.52705556 | W12: 90.09391111 | X12: 111.6866667 | Y12: 95.23615139 | Z12: 89.27952917 | AA12: 99.23050093 | AB12: 65.15055556 | AC12: 78.18066667 | AD12: 98.28426667 | AE12: 117.94112 | AF12: 166.7854222 | AG12: 51.3060625 | AH12: 73.52705556 | AI12: 90.09391111 | AJ12: 100.518 | AK12: 85.71253625 | AL12: 89.27952917 | AM12: 99.23050093
A13: Finance Cost | B13: =B4*12.5% -> 190.375 | C13: =C4*12.5% -> 253.8333333 | D13: 338.4444444 | E13: 406.1333333 | F13: 487.36 | G13: 649.8133333 | H13: 55.52604167 | I13: 74.03472222 | J13: 93.07222222 | K13: 111.6866667 | L13: 142.1466667 | M13: 74.29913194 | N13: 128.6088889 | O13: 96.91497685 | P13: 18.50868056 | Q13: 24.67824074 | R13: 31.02407407 | S13: 37.22888889 | T13: 47.38222222 | U13: 16.19509549 | V13: 20.88836806 | W13: 25.59486111 | X13: 31.72916667 | Y13: 27.05572483 | Z13: 25.3635026 | AA13: 28.19048322 | AB13: 18.50868056 | AC13: 22.21041667 | AD13: 27.92166667 | AE13: 33.506 | AF13: 47.38222222 | AG13: 14.57558594 | AH13: 20.88836806 | AI13: 25.59486111 | AJ13: 28.55625 | AK13: 24.35015234 | AL13: 25.3635026 | AM13: 28.19048322
A14: Net income | B14: =B12-B13 -> 540.665 | C14: =C12-C13 -> 639.66 | D14: 852.88 | E14: 1023.456 | F14: 1228.1472 | G14: 1637.5296 | H14: 157.6939583 | I14: 186.5675 | J14: 234.542 | K14: 281.4504 | L14: 358.2096 | M14: 187.2338125 | N14: 365.2492444 | O14: 244.2257417 | P14: 46.641875 | Q14: 62.18916667 | R14: 78.18066667 | S14: 93.8168 | T14: 119.4032 | U14: 40.81164063 | V14: 52.6386875 | W14: 64.49905 | X14: 79.9575 | Y14: 68.18042656 | Z14: 63.91602656 | AA14: 71.04001771 | AB14: 46.641875 | AC14: 55.97025 | AD14: 70.3626 | AE14: 84.43512 | AF14: 119.4032 | AG14: 36.73047656 | AH14: 52.6386875 | AI14: 64.49905 | AJ14: 71.96175 | AK14: 61.36238391 | AL14: 63.91602656 | AM14: 71.04001771

Sheet Amazon
H1: 2013 | I1: 2013 | J1: 2013 | K1: 2013 | L1: 2014 | M1: 2014 | N1: 2014 | O1: 2014 | P1: 2013 | Q1: 2013 | R1: 2013 | S1: 2013 | T1: 2013 | U1: 2013 | V1: 2013 | W1: 2013 | X1: 2013 | Y1: 2013 | Z1: 2013 | AA1: 2013 | AB1: 2014 | AC1: 2014 | AD1: 2014 | AE1: 2014 | AF1: 2014 | AG1: 2014 | AH1: 2014 | AI1: 2014 | AJ1: 2014 | AK1: 2014 | AL1: 2014 | AM1: 2014
H2: Q1 | I2: Q2 | J2: Q3 | K2: Q4 | L2: Q1 | M2: Q2 | N2: Q3 | O2: Q4 | P2: Jan | Q2: Feb | R2: Mar | S2: Apr | T2: May | U2: Jun | V2: Jul | W2: Aug | X2: Sep | Y2: Oct | Z2: Nov | AA2: Dec | AB2: Jan | AC2: Feb | AD2: Mar | AE2: Apr | AF2: May | AG2: Jun | AH2: Jul | AI2: Aug | AJ2: Sep | AK2: Oct | AL2: Nov | AM2: Dec
B3: 2009 | C3: 2010 | D3: 2011 | E3: 2012 | F3: 2013 | G3: 2014 | H3: =H2&CHAR(10)&H1 -> Q1 2013 | I3: =I2&CHAR(10)&I1 -> Q2 2013 | J3: Q3 2013 | K3: Q4 2013 | L3: Q1 2014 | M3: Q2 2014 | N3: Q3 2014 | O3: Q4 2014 | P3: Jan 2013 | Q3: Feb 2013 | R3: Mar 2013 | S3: Apr 2013 | T3: May 2013 | U3: Jun 2013 | V3: Jul 2013 | W3: Aug 2013 | X3: Sep 2013 | Y3: Oct 2013 | Z3: Nov 2013 | AA3: Dec 2013 | AB3: Jan 2014 | AC3: Feb 2014 | AD3: Mar 2014 | AE3: Apr 2014 | AF3: May 2014 | AG3: Jun 2014 | AH3: Jul 2014 | AI3: Aug 2014 | AJ3: Sep 2014 | AK3: Oct 2014 | AL3: Nov 2014 | AM3: Dec 2014
A4: Revenue | B4: 3600 | C4: =B4*RANDBETWEEN(9,10)/7.5 -> 4320 | D4: =C4*RANDBETWEEN(9,10)/7.5 -> 5760 | E4: 7680 | F4: 10240 | G4: 13653.33333 | H4: =AVERAGE(B4:C4)/4 -> 990 | I4: =AVERAGE(C4:D4)/4 -> 1260 | J4: 1680 | K4: 2240 | L4: 2986.666667 | M4: =AVERAGE(B4:E4)/4 -> 1335 | N4: =AVERAGE(E4:G4)/4 -> 2631.111111 | O4: =AVERAGE(B4:G4)/4 -> 1885.555556 | P4: =AVERAGE(B4:C4)/12 -> 330 | Q4: =AVERAGE(C4:D4)/12 -> 420 | R4: 560 | S4: 746.6666667 | T4: 995.5555556 | U4: =AVERAGE(H4:I4)/4 -> 281.25 | V4: =AVERAGE(I4:J4)/4 -> 367.5 | W4: =AVERAGE(J4:K4)/4 -> 490 | X4: 653.3333333 | Y4: =AVERAGE(L4:M4)/4 -> 540.2083333 | Z4: =AVERAGE(M4:N4)/4 -> 495.7638889 | AA4: =AVERAGE(N4:O4)/4 -> 564.5833333 | AB4: =P4*RANDBETWEEN(9,10)/10 -> 330 | AC4: =Q4*RANDBETWEEN(9,10)/10 -> 378 | AD4: 504 | AE4: 672 | AF4: 995.5555556 | AG4: 253.125 | AH4: 367.5 | AI4: 490 | AJ4: 588 | AK4: 486.1875 | AL4: 495.7638889 | AM4: 508.125
A5: Cost Of Services | B5: =B4*30% -> 1080 | C5: =C4*30% -> 1296 | D5: 1728 | E5: 2304 | F5: 3072 | G5: 4096 | H5: 297 | I5: 378 | J5: 504 | K5: 672 | L5: 896 | M5: 400.5 | N5: 789.3333333 | O5: 565.6666667 | P5: 99 | Q5: 126 | R5: 168 | S5: 224 | T5: 298.6666667 | U5: 84.375 | V5: 110.25 | W5: 147 | X5: 196 | Y5: 162.0625 | Z5: 148.7291667 | AA5: 169.375 | AB5: 99 | AC5: 113.4 | AD5: 151.2 | AE5: 201.6 | AF5: 298.6666667 | AG5: 75.9375 | AH5: 110.25 | AI5: 147 | AJ5: 176.4 | AK5: 145.85625 | AL5: 148.7291667 | AM5: 152.4375
A6: Gross Profit | B6: =B4-B5 -> 2520 | C6: =C4-C5 -> 3024 | D6: 4032 | E6: 5376 | F6: 7168 | G6: 9557.333333 | H6: 693 | I6: 882 | J6: 1176 | K6: 1568 | L6: 2090.666667 | M6: 934.5 | N6: 1841.777778 | O6: 1319.888889 | P6: 231 | Q6: 294 | R6: 392 | S6: 522.6666667 | T6: 696.8888889 | U6: 196.875 | V6: 257.25 | W6: 343 | X6: 457.3333333 | Y6: 378.1458333 | Z6: 347.0347222 | AA6: 395.2083333 | AB6: 231 | AC6: 264.6 | AD6: 352.8 | AE6: 470.4 | AF6: 696.8888889 | AG6: 177.1875 | AH6: 257.25 | AI6: 343 | AJ6: 411.6 | AK6: 340.33125 | AL6: 347.0347222 | AM6: 355.6875
A7: Admin Expenses | B7: =B$4*11% -> 396 | C7: =C$4*11% -> 475.2 | D7: 633.6 | E7: 844.8 | F7: 1126.4 | G7: 1501.866667 | H7: 108.9 | I7: 138.6 | J7: 184.8 | K7: 246.4 | L7: 328.5333333 | M7: 146.85 | N7: 289.4222222 | O7: 207.4111111 | P7: 36.3 | Q7: 46.2 | R7: 61.6 | S7: 82.13333333 | T7: 109.5111111 | U7: 30.9375 | V7: 40.425 | W7: 53.9 | X7: 71.86666667 | Y7: 59.42291667 | Z7: 54.53402778 | AA7: 62.10416667 | AB7: 36.3 | AC7: 41.58 | AD7: 55.44 | AE7: 73.92 | AF7: 109.5111111 | AG7: 27.84375 | AH7: 40.425 | AI7: 53.9 | AJ7: 64.68 | AK7: 53.480625 | AL7: 54.53402778 | AM7: 55.89375
A8: Selling & Marketing | B8: =B$4*7% -> 252 | C8: =C$4*5% -> 216 | D8: 288 | E8: 384 | F8: 512 | G8: 682.6666667 | H8: =H$4*7% -> 69.3 | I8: 63 | J8: 84 | K8: 112 | L8: 149.3333333 | M8: 66.75 | N8: =N$4*7% -> 184.1777778 | O8: 94.27777778 | P8: 16.5 | Q8: 21 | R8: 28 | S8: =S$4*5% -> 37.33333333 | T8: 49.77777778 | U8: 14.0625 | V8: 18.375 | W8: 24.5 | X8: 32.66666667 | Y8: 27.01041667 | Z8: 24.78819444 | AA8: 28.22916667 | AB8: 16.5 | AC8: 18.9 | AD8: 25.2 | AE8: 33.6 | AF8: 49.77777778 | AG8: 12.65625 | AH8: 18.375 | AI8: 24.5 | AJ8: 29.4 | AK8: 24.309375 | AL8: 24.78819444 | AM8: 25.40625
A9: Depreciation | B9: =B$4*3% -> 108 | C9: 216 | D9: 288 | E9: 384 | F9: 512 | G9: 682.6666667 | H9: =H$4*3% -> 29.7 | I9: 63 | J9: 84 | K9: 112 | L9: 149.3333333 | M9: 66.75 | N9: =N$4*3% -> 78.93333333 | O9: 94.27777778 | P9: 16.5 | Q9: 21 | R9: 28 | S9: 37.33333333 | T9: 49.77777778 | U9: 14.0625 | V9: 18.375 | W9: 24.5 | X9: 32.66666667 | Y9: 27.01041667 | Z9: 24.78819444 | AA9: 28.22916667 | AB9: 16.5 | AC9: 18.9 | AD9: 25.2 | AE9: 33.6 | AF9: 49.77777778 | AG9: 12.65625 | AH9: 18.375 | AI9: 24.5 | AJ9: 29.4 | AK9: 24.309375 | AL9: 24.78819444 | AM9: 25.40625
A10: Impairment loss | B10: =B$4*1% -> 36 | C10: 216 | D10: 288 | E10: 384 | F10: 512 | G10: 682.6666667 | H10: =H$4*1% -> 9.9 | I10: 63 | J10: 84 | K10: 112 | L10: 149.3333333 | M10: 66.75 | N10: =N$4*1% -> 26.31111111 | O10: 94.27777778 | P10: 16.5 | Q10: 21 | R10: 28 | S10: 37.33333333 | T10: 49.77777778 | U10: 14.0625 | V10: 18.375 | W10: 24.5 | X10: 32.66666667 | Y10: 27.01041667 | Z10: 24.78819444 | AA10: 28.22916667 | AB10: 16.5 | AC10: 18.9 | AD10: 25.2 | AE10: 33.6 | AF10: 49.77777778 | AG10: 12.65625 | AH10: 18.375 | AI10: 24.5 | AJ10: 29.4 | AK10: 24.309375 | AL10: 24.78819444 | AM10: 25.40625
A11: Operating expenses | B11: =SUM(B7:B10) -> 792 | C11: 1123.2 | D11: 1497.6 | E11: 1996.8 | F11: 2662.4 | G11: 3549.866667 | H11: 217.8 | I11: 327.6 | J11: 436.8 | K11: 582.4 | L11: 776.5333333 | M11: 347.1 | N11: 578.8444444 | O11: 490.2444444 | P11: 85.8 | Q11: 109.2 | R11: 145.6 | S11: 194.1333333 | T11: 258.8444444 | U11: 73.125 | V11: 95.55 | W11: 127.4 | X11: 169.8666667 | Y11: 140.4541667 | Z11: 128.8986111 | AA11: 146.7916667 | AB11: 85.8 | AC11: 98.28 | AD11: 131.04 | AE11: 174.72 | AF11: 258.8444444 | AG11: 65.8125 | AH11: 95.55 | AI11: 127.4 | AJ11: 152.88 | AK11: 126.40875 | AL11: 128.8986111 | AM11: 132.1125
A12: Operating income | B12: =B6-B11 -> 1728 | C12: =C6-C11 -> 1900.8 | D12: 2534.4 | E12: 3379.2 | F12: 4505.6 | G12: 6007.466667 | H12: 475.2 | I12: 554.4 | J12: 739.2 | K12: 985.6 | L12: 1314.133333 | M12: 587.4 | N12: 1262.933333 | O12: 829.6444444 | P12: 145.2 | Q12: 184.8 | R12: 246.4 | S12: 328.5333333 | T12: 438.0444444 | U12: 123.75 | V12: 161.7 | W12: 215.6 | X12: 287.4666667 | Y12: 237.6916667 | Z12: 218.1361111 | AA12: 248.4166667 | AB12: 145.2 | AC12: 166.32 | AD12: 221.76 | AE12: 295.68 | AF12: 438.0444444 | AG12: 111.375 | AH12: 161.7 | AI12: 215.6 | AJ12: 258.72 | AK12: 213.9225 | AL12: 218.1361111 | AM12: 223.575
A13: Finance Cost | B13: =B4*12.5% -> 450 | C13: =C4*12.5% -> 540 | D13: 720 | E13: 960 | F13: 1280 | G13: 1706.666667 | H13: 123.75 | I13: 157.5 | J13: 210 | K13: 280 | L13: 373.3333333 | M13: 166.875 | N13: 328.8888889 | O13: 235.6944444 | P13: 41.25 | Q13: 52.5 | R13: 70 | S13: 93.33333333 | T13: 124.4444444 | U13: 35.15625 | V13: 45.9375 | W13: 61.25 | X13: 81.66666667 | Y13: 67.52604167 | Z13: 61.97048611 | AA13: 70.57291667 | AB13: 41.25 | AC13: 47.25 | AD13: 63 | AE13: 84 | AF13: 124.4444444 | AG13: 31.640625 | AH13: 45.9375 | AI13: 61.25 | AJ13: 73.5 | AK13: 60.7734375 | AL13: 61.97048611 | AM13: 63.515625
A14: Net income | B14: =B12-B13 -> 1278 | C14: =C12-C13 -> 1360.8 | D14: 1814.4 | E14: 2419.2 | F14: 3225.6 | G14: 4300.8 | H14: 351.45 | I14: 396.9 | J14: 529.2 | K14: 705.6 | L14: 940.8 | M14: 420.525 | N14: 934.0444444 | O14: 593.95 | P14: 103.95 | Q14: 132.3 | R14: 176.4 | S14: 235.2 | T14: 313.6 | U14: 88.59375 | V14: 115.7625 | W14: 154.35 | X14: 205.8 | Y14: 170.165625 | Z14: 156.165625 | AA14: 177.84375 | AB14: 103.95 | AC14: 119.07 | AD14: 158.76 | AE14: 211.68 | AF14: 313.6 | AG14: 79.734375 | AH14: 115.7625 | AI14: 154.35 | AJ14: 185.22 | AK14: 153.1490625 | AL14: 156.165625 | AM14: 160.059375

Sheet Control
A2: Jan 2013 | B2: Q1 2013 | C2: 2009 | F2: Depreciation
A3: Feb 2013 | B3: Q2 2013 | C3: 2010 | F3: Amazon
A4: Mar 2013 | B4: Q3 2013 | C4: 2011 | F4: Quarterly | G4: =MATCH(TRENDSELECTED,TRENDS,0) -> 2
A5: Apr 2013 | B5: Q4 2013 | C5: 2012
A6: May 2013 | B6: Q1 2014 | C6: 2013
A7: Jun 2013 | B7: Q2 2014 | C7: 2014 | F7: Jan 2013 | G7: =INDEX(INDIRECT(COMPANYSELECTED),MATCH(ITEMSELECTED,ITEMS,0),MATCH(F7,PERIODS,0)) -> 16.5 | J7: Q1 2013 | K7: =INDEX(INDIRECT(COMPANYSELECTED),MATCH(ITEMSELECTED,ITEMS,0),MATCH(J7,PERIODS,0)) -> 29.7 | N7: 2009 | O7: =INDEX(INDIRECT(COMPANYSELECTED),MATCH(ITEMSELECTED,ITEMS,0),MATCH(N7,PERIODS,0)) -> 108
A8: Jul 2013 | B8: Q3 2014 | F8: Feb 2013 | G8: 21 | J8: Q2 2013 | K8: 63 | N8: 2010 | O8: 216
A9: Aug 2013 | B9: Q4 2014 | F9: Mar 2013 | G9: 28 | J9: Q3 2013 | K9: 84 | N9: 2011 | O9: 288
A10: Sep 2013 | F10: Apr 2013 | G10: 37.33333333 | J10: Q4 2013 | K10: 112 | N10: 2012 | O10: 384
A11: Oct 2013 | F11: May 2013 | G11: 49.77777778 | J11: Q1 2014 | K11: 149.3333333 | N11: 2013 | O11: 512
A12: Nov 2013 | F12: Jun 2013 | G12: 14.0625 | J12: Q2 2014 | K12: 66.75 | N12: 2014 | O12: 682.6666667
A13: Dec 2013 | F13: Jul 2013 | G13: 18.375 | J13: Q3 2014 | K13: 78.93333333
A14: Jan 2014 | F14: Aug 2013 | G14: 24.5 | J14: Q4 2014 | K14: 94.27777778
A15: Feb 2014 | F15: Sep 2013 | G15: 32.66666667
A16: Mar 2014 | F16: Oct 2013 | G16: 27.01041667
A17: Apr 2014 | F17: Nov 2013 | G17: 24.78819444
A18: May 2014 | F18: Dec 2013 | G18: 28.22916667
A19: Jun 2014 | F19: Jan 2014 | G19: 16.5
A20: Jul 2014 | F20: Feb 2014 | G20: 18.9
A21: Aug 2014 | F21: Mar 2014 | G21: 25.2
A22: Sep 2014 | F22: Apr 2014 | G22: 33.6
A23: Oct 2014 | F23: May 2014 | G23: 49.77777778
A24: Nov 2014 | F24: Jun 2014 | G24: 12.65625
A25: Dec 2014 | F25: Jul 2014 | G25: 18.375
F26: Aug 2014 | G26: 24.5
F27: Sep 2014 | G27: 29.4
F28: Oct 2014 | G28: 24.309375
F29: Nov 2014 | G29: 24.78819444
F30: Dec 2014 | G30: 25.40625
